[Event "*** Titled Tuesday Blitz"]
[Site "Chess.com"]
[Date "2020.01.07"]
[Round "3"]
[White "Borsuk_Konstantin"]
[Black "Lukianoo"]
[Result "0-1"]
[WhiteElo "2483"]
[BlackElo "2803"]
[TimeControl "180+2"]
[EndTime "13:38:11 PST"]
[Termination "Lukianoo won by resignation"]

1. d4 {[%clk 0:03:01.9]} 1... Nf6 {[%clk 0:02:59.8]} 2. c4 {[%clk 0:03:02.2]}
2... e6 {[%clk 0:03:01]} 3. Nc3 {[%clk 0:03:03]} 3... Bb4 {[%clk 0:03:01.7]} 4.
e3 {[%clk 0:03:01.2]} 4... c5 {[%clk 0:03:01.5]} 5. a3 {[%clk 0:02:56.9]} 5...
Bxc3+ {[%clk 0:03:00.5]} 6. bxc3 {[%clk 0:02:58.8]} 6... d6 {[%clk 0:03:00.5]}
7. f3 {[%clk 0:02:58.3]} 7... O-O {[%clk 0:02:58.4]} 8. e4 {[%clk 0:02:56.2]}
8... Nc6 {[%clk 0:02:58.4]} 9. Be3 {[%clk 0:02:20]} 9... b6 {[%clk 0:02:57.4]}
10. Qa4 {[%clk 0:02:00.8]} 10... Na5 {[%clk 0:02:46.8]} 11. e5 {[%clk
0:01:56.7]} 11... cxd4 {[%clk 0:02:46.9]} 12. cxd4 {[%clk 0:01:52.3]} 12... dxe5
{[%clk 0:02:47.2]} 13. dxe5 {[%clk 0:01:53.3]} 13... Nd7 {[%clk 0:02:48.2]} 14.
f4 {[%clk 0:01:51.7]} 14... Bb7 {[%clk 0:02:35.2]} 15. Rd1 {[%clk 0:01:47.3]}
15... Qh4+ {[%clk 0:02:34.5]} 16. Bf2 {[%clk 0:01:25.1]} 16... Qxf4 {[%clk
0:02:33.6]} 17. Qxd7 {[%clk 0:01:14.8]} 17... Qxe5+ {[%clk 0:02:19.7]} 18. Ne2
{[%clk 0:01:15.4]} 18... Qb2 {[%clk 0:01:59.8]} 19. Qd3 {[%clk 0:00:51.6]} 19...
e5 {[%clk 0:01:55.4]} 20. Qc3 {[%clk 0:00:48.9]} 20... Qa2 {[%clk 0:01:51.3]}
21. Ra1 {[%clk 0:00:36.7]} 21... Qxc4 {[%clk 0:01:50.7]} 22. Qxc4 {[%clk
0:00:37.5]} 22... Nxc4 {[%clk 0:01:52.6]} 23. Nc3 {[%clk 0:00:32.4]} 23... Na5
{[%clk 0:01:33]} 24. h4 {[%clk 0:00:28.8]} 24... f5 {[%clk 0:01:18.9]} 25. Rh3
{[%clk 0:00:24.6]} 25... f4 {[%clk 0:01:19.9]} 26. Bd3 {[%clk 0:00:17.4]} 26...
Bxg2 {[%clk 0:01:17.5]} 27. Rh2 {[%clk 0:00:17.3]} 27... Bc6 {[%clk 0:01:10.5]}
28. Be4 {[%clk 0:00:12.6]} 28... Rac8 {[%clk 0:01:08.8]} 29. Nd5 {[%clk
0:00:09.9]} 29... Rf7 {[%clk 0:01:04]} 30. Rd1 {[%clk 0:00:08.6]} 30... Kf8
{[%clk 0:01:02.1]} 31. Bxh7 {[%clk 0:00:06]} 31... e4 {[%clk 0:01:02.5]} 32. Nb4
{[%clk 0:00:04.3]} 32... e3 {[%clk 0:01:01.7]} 33. Bg1 {[%clk 0:00:05.5]} 33...
Bf3 {[%clk 0:01:00.3]} 34. Rd4 {[%clk 0:00:06.1]} 34... Rc1+ {[%clk 0:00:59.4]}
0-1

[Event "*** Titled Tuesday Blitz"]
[Site "Chess.com"]
[Date "2020.01.07"]
[Round "3"]
[White "Yaacovn"]
[Black "vlad_Sid"]
[Result "1-0"]
[WhiteElo "2807"]
[BlackElo "2598"]
[TimeControl "180+2"]
[EndTime "13:38:15 PST"]
[Termination "Yaacovn won by resignation"]

1. d4 {[%clk 0:03:01.9]} 1... Nf6 {[%clk 0:02:59.5]} 2. Nf3 {[%clk 0:03:03.1]}
2... c5 {[%clk 0:02:59.8]} 3. c3 {[%clk 0:03:04]} 3... d5 {[%clk 0:03:00]} 4.
Bf4 {[%clk 0:03:04.1]} 4... Nc6 {[%clk 0:03:01.1]} 5. e3 {[%clk 0:03:05.4]} 5...
Qb6 {[%clk 0:03:01.8]} 6. Qc2 {[%clk 0:03:06.3]} 6... g6 {[%clk 0:02:18.6]} 7.
Nbd2 {[%clk 0:03:05.8]} 7... Bf5 {[%clk 0:02:18.2]} 8. dxc5 {[%clk 0:03:05.5]}
8... Qxc5 {[%clk 0:02:13.8]} 9. Qb3 {[%clk 0:03:06.5]} 9... Na5 {[%clk
0:01:44.6]} 10. Qa4+ {[%clk 0:03:06]} 10... Bd7 {[%clk 0:01:45]} 11. Qd4 {[%clk
0:02:50.6]} 11... Qxd4 {[%clk 0:01:39.2]} 12. exd4 {[%clk 0:02:51.5]} 12... Rc8
{[%clk 0:01:37.1]} 13. Ne5 {[%clk 0:02:52.2]} 13... Bg7 {[%clk 0:01:31.1]} 14.
Be2 {[%clk 0:02:52.8]} 14... Nc6 {[%clk 0:01:30.4]} 15. O-O {[%clk 0:02:53.4]}
15... O-O {[%clk 0:01:25.6]} 16. Rfe1 {[%clk 0:02:53.8]} 16... Bf5 {[%clk
0:01:25.6]} 17. Nb3 {[%clk 0:02:52.1]} 17... Nxe5 {[%clk 0:01:19.5]} 18. Bxe5
{[%clk 0:02:52.9]} 18... Ne4 {[%clk 0:01:18]} 19. Bf4 {[%clk 0:02:48]} 19...
Rfd8 {[%clk 0:01:09.8]} 20. Bd3 {[%clk 0:02:45.3]} 20... Kf8 {[%clk 0:01:05.3]}
21. f3 {[%clk 0:02:43.6]} 21... Nd6 {[%clk 0:01:02]} 22. Bxd6 {[%clk 0:02:39]}
22... Rxd6 {[%clk 0:01:03.9]} 23. Bxf5 {[%clk 0:02:39.8]} 23... gxf5 {[%clk
0:01:05.8]} 24. Re2 {[%clk 0:02:38.7]} 24... e6 {[%clk 0:01:06.5]} 25. Nc1
{[%clk 0:02:39.7]} 25... Ke7 {[%clk 0:01:05]} 26. Nd3 {[%clk 0:02:41]} 26... b6
{[%clk 0:01:05.2]} 27. a4 {[%clk 0:02:41.3]} 27... Rc4 {[%clk 0:00:59.7]} 28.
Kf2 {[%clk 0:02:41.4]} 28... a5 {[%clk 0:00:37.8]} 29. g3 {[%clk 0:02:41.9]}
29... Rd8 {[%clk 0:00:36.1]} 30. h3 {[%clk 0:02:42.9]} 30... h5 {[%clk
0:00:35.1]} 31. Ke3 {[%clk 0:02:37.3]} 31... Bh6+ {[%clk 0:00:35.2]} 32. Kf2
{[%clk 0:02:36.6]} 32... Bg7 {[%clk 0:00:36.2]} 33. Ra2 {[%clk 0:02:36.8]} 33...
Bf6 {[%clk 0:00:35.7]} 34. Nf4 {[%clk 0:02:34.4]} 34... h4 {[%clk 0:00:35.4]}
35. g4 {[%clk 0:02:35.7]} 35... Bg5 {[%clk 0:00:34.1]} 36. Nd3 {[%clk
0:02:34.4]} 36... fxg4 {[%clk 0:00:35]} 37. hxg4 {[%clk 0:02:31.7]} 37... Rh8
{[%clk 0:00:30.9]} 38. f4 {[%clk 0:02:28.8]} 38... h3 {[%clk 0:00:31.5]} 39. Kg3
{[%clk 0:02:25.7]} 39... Bf6 {[%clk 0:00:18.2]} 40. Rh2 {[%clk 0:02:24]} 40...
Rb8 {[%clk 0:00:14]} 41. Rxh3 {[%clk 0:02:23.2]} 41... Rg8 {[%clk 0:00:11.7]}
42. Kf3 {[%clk 0:02:23.8]} 42... Rcc8 {[%clk 0:00:11.4]} 43. Ra1 {[%clk
0:02:23.8]} 43... Rg7 {[%clk 0:00:11.2]} 44. g5 {[%clk 0:02:24.3]} 44... Bxg5
{[%clk 0:00:12]} 45. fxg5 {[%clk 0:02:25.6]} 45... Rxg5 {[%clk 0:00:13.9]} 46.
Rg3 {[%clk 0:02:23]} 46... Rf5+ {[%clk 0:00:14.6]} 47. Ke2 {[%clk 0:02:23.4]}
47... Rh8 {[%clk 0:00:15.8]} 48. Rf1 {[%clk 0:02:20.6]} 48... Rh2+ {[%clk
0:00:16.4]} 49. Rf2 {[%clk 0:02:21.9]} 49... Rfxf2+ {[%clk 0:00:10.7]} 50. Nxf2
{[%clk 0:02:23.8]} 50... Kf8 {[%clk 0:00:11.2]} 51. Kf1 {[%clk 0:02:24.1]} 51...
Rh4 {[%clk 0:00:11.6]} 52. Kg2 {[%clk 0:02:24.8]} 52... Rh6 {[%clk 0:00:11]} 53.
Ng4 {[%clk 0:02:25.8]} 53... Rh8 {[%clk 0:00:09.7]} 54. Ne5 {[%clk 0:02:26.8]}
54... Ke7 {[%clk 0:00:11]} 55. Rg7 {[%clk 0:02:27.3]} 55... Rf8 {[%clk
0:00:12.1]} 56. Ng6+ {[%clk 0:02:28.1]} 56... Kf6 {[%clk 0:00:11.9]} 57. Nxf8
{[%clk 0:02:30]} 57... Kxg7 {[%clk 0:00:13.8]} 58. Nd7 {[%clk 0:02:31.9]} 58...
b5 {[%clk 0:00:13.2]} 59. axb5 {[%clk 0:02:32.6]} 59... a4 {[%clk 0:00:15.1]}
60. b6 {[%clk 0:02:33.8]} 60... e5 {[%clk 0:00:16.9]} 61. b7 {[%clk 0:02:34.4]}
61... exd4 {[%clk 0:00:18.8]} 1-0

[Event "*** Titled Tuesday Blitz"]
[Site "Chess.com"]
[Date "2020.01.07"]
[Round "3"]
[White "MathiasWomacka"]
[Black "Keaton87"]
[Result "1/2-1/2"]
[WhiteElo "2341"]
[BlackElo "2612"]
[TimeControl "180+2"]
[EndTime "13:38:19 PST"]
[Termination "Game drawn by repetition"]

1. e4 {[%clk 0:03:01.9]} 1... c5 {[%clk 0:02:59.8]} 2. Nf3 {[%clk 0:03:02.4]}
2... d6 {[%clk 0:02:59.6]} 3. d4 {[%clk 0:03:03.6]} 3... Nf6 {[%clk 0:03:00.9]}
4. Nc3 {[%clk 0:03:04]} 4... cxd4 {[%clk 0:03:02.1]} 5. Nxd4 {[%clk 0:03:05.9]}
5... g6 {[%clk 0:03:03.5]} 6. Be3 {[%clk 0:03:06.3]} 6... Bg7 {[%clk 0:03:05.2]}
7. f3 {[%clk 0:03:07.8]} 7... O-O {[%clk 0:03:06.9]} 8. Qd2 {[%clk 0:03:08.7]}
8... Nc6 {[%clk 0:03:08.2]} 9. O-O-O {[%clk 0:03:09.4]} 9... Nxd4 {[%clk
0:03:09.2]} 10. Bxd4 {[%clk 0:03:10]} 10... Be6 {[%clk 0:03:10.9]} 11. Kb1
{[%clk 0:03:10.8]} 11... Qc7 {[%clk 0:03:12.6]} 12. h4 {[%clk 0:03:10.6]} 12...
Rfc8 {[%clk 0:03:13.7]} 13. h5 {[%clk 0:03:10.2]} 13... Qa5 {[%clk 0:03:15.2]}
14. hxg6 {[%clk 0:03:10.5]} 14... fxg6 {[%clk 0:03:15.1]} 15. a3 {[%clk
0:03:11.1]} 15... Rab8 {[%clk 0:03:13.5]} 16. g4 {[%clk 0:03:11.2]} 16... Bf7
{[%clk 0:03:12.4]} 17. g5 {[%clk 0:03:01.5]} 17... Nh5 {[%clk 0:03:12.8]} 18.
Bxg7 {[%clk 0:03:01.1]} 18... Nxg7 {[%clk 0:03:14]} 19. Bh3 {[%clk 0:02:50.5]}
19... Rc7 {[%clk 0:03:08.4]} 20. Bg4 {[%clk 0:02:50.2]} 20... b5 {[%clk
0:02:50.2]} 21. Qh2 {[%clk 0:02:50.8]} 21... Nh5 {[%clk 0:02:51.4]} 22. Nd5
{[%clk 0:02:35.7]} 22... Rcb7 {[%clk 0:02:48.2]} 23. c3 {[%clk 0:02:12.9]} 23...
Qa4 {[%clk 0:02:38.5]} 24. Bxh5 {[%clk 0:02:11.2]} 24... gxh5 {[%clk 0:02:39.2]}
25. Nf4 {[%clk 0:02:12.1]} 25... b4 {[%clk 0:02:36]} 26. cxb4 {[%clk 0:02:05.4]}
26... Rxb4 {[%clk 0:02:34.6]} 27. axb4 {[%clk 0:02:05.6]} 27... Ba2+ {[%clk
0:01:30.1]} 28. Kc1 {[%clk 0:02:05.9]} 28... Rc8+ {[%clk 0:01:31.4]} 29. Kd2
{[%clk 0:02:06.5]} 29... Qxb4+ {[%clk 0:01:32.8]} 30. Ke3 {[%clk 0:02:00.6]}
30... Qb6+ {[%clk 0:01:25.1]} 31. Rd4 {[%clk 0:01:54.1]} 31... e5 {[%clk
0:01:21.6]} 32. Ne2 {[%clk 0:01:42.1]} 32... Bf7 {[%clk 0:00:57.4]} 33. Qh3
{[%clk 0:01:09.8]} 33... Rc2 {[%clk 0:00:51.7]} 34. Qd7 {[%clk 0:01:01.2]} 34...
Bc4 {[%clk 0:00:20.4]} 35. Qe8+ {[%clk 0:00:51.9]} 35... Kg7 {[%clk 0:00:19.8]}
36. Qe7+ {[%clk 0:00:52.2]} 36... Kg8 {[%clk 0:00:21]} 37. Qe8+ {[%clk 0:00:50]}
37... Kg7 {[%clk 0:00:22.2]} 38. Qe7+ {[%clk 0:00:51.3]} 38... Kg8 {[%clk
0:00:23.6]} 39. Qe8+ {[%clk 0:00:50.3]} 1/2-1/2

[Event "*** Titled Tuesday Blitz"]
[Site "Chess.com"]
[Date "2020.01.07"]
[Round "3"]
[White "MiroVlasenko"]
[Black "wonderfultime"]
[Result "0-1"]
[WhiteElo "2692"]
[BlackElo "2969"]
[TimeControl "180+2"]
[EndTime "13:38:23 PST"]
[Termination "wonderfultime won by resignation"]

1. d4 {[%clk 0:03:01.5]} 1... d5 {[%clk 0:02:55.2]} 2. Bf4 {[%clk 0:03:02]} 2...
Nf6 {[%clk 0:02:56.4]} 3. e3 {[%clk 0:03:03.5]} 3... e6 {[%clk 0:02:57.7]} 4.
Nf3 {[%clk 0:03:04.5]} 4... Bd6 {[%clk 0:02:59.3]} 5. Ne5 {[%clk 0:03:05.6]}
5... O-O {[%clk 0:02:55]} 6. Nd2 {[%clk 0:03:05.8]} 6... c5 {[%clk 0:02:56]} 7.
c3 {[%clk 0:03:04.9]} 7... Nc6 {[%clk 0:02:51.2]} 8. Bd3 {[%clk 0:03:05.5]} 8...
Qc7 {[%clk 0:02:33.9]} 9. Ndf3 {[%clk 0:03:04.9]} 9... cxd4 {[%clk 0:02:14.2]}
10. exd4 {[%clk 0:03:03.4]} 10... Ne4 {[%clk 0:02:15.6]} 11. Qe2 {[%clk
0:02:30.3]} 11... f6 {[%clk 0:02:13.4]} 12. Nxc6 {[%clk 0:02:29.4]} 12... Bxf4
{[%clk 0:02:13.5]} 13. Nb4 {[%clk 0:02:14.3]} 13... Nxc3 {[%clk 0:02:03]} 14.
Qc2 {[%clk 0:02:14.3]} 14... Ne4 {[%clk 0:01:49.7]} 15. Bxe4 {[%clk 0:02:07.3]}
15... dxe4 {[%clk 0:01:51.6]} 16. Qxe4 {[%clk 0:02:08.4]} 16... Bd6 {[%clk
0:01:22.9]} 17. a3 {[%clk 0:01:56.2]} 17... a5 {[%clk 0:00:55.8]} 18. Nd3 {[%clk
0:01:54.9]} 18... Bd7 {[%clk 0:00:54.2]} 19. Rc1 {[%clk 0:01:49.7]} 19... Qb6
{[%clk 0:00:50.2]} 20. O-O {[%clk 0:01:47.7]} 20... Rfe8 {[%clk 0:00:51.4]} 21.
Rfe1 {[%clk 0:01:27.9]} 21... Bc6 {[%clk 0:00:52.3]} 22. Qe2 {[%clk 0:01:26.7]}
22... Bd5 {[%clk 0:00:48.4]} 23. Nd2 {[%clk 0:01:23.8]} 23... Qxd4 {[%clk
0:00:47.8]} 24. Nf3 {[%clk 0:01:20.1]} 24... Qg4 {[%clk 0:00:43.7]} 25. h3
{[%clk 0:01:11.5]} 25... Qg6 {[%clk 0:00:45.1]} 26. Qe3 {[%clk 0:01:09.7]} 26...
Rad8 {[%clk 0:00:44.8]} 27. Nf4 {[%clk 0:01:09.9]} 27... Bxf4 {[%clk 0:00:46]}
28. Qxf4 {[%clk 0:01:11.8]} 28... e5 {[%clk 0:00:47.9]} 29. Qe3 {[%clk
0:01:11.9]} 29... Bc6 {[%clk 0:00:45.2]} 30. Red1 {[%clk 0:01:09.8]} 30... h6
{[%clk 0:00:41.4]} 31. Ne1 {[%clk 0:01:07.9]} 31... Qf5 {[%clk 0:00:35.4]} 32.
Qb6 {[%clk 0:01:01.1]} 32... Rxd1 {[%clk 0:00:36]} 33. Rxd1 {[%clk 0:01:03]}
33... a4 {[%clk 0:00:37]} 34. Qe3 {[%clk 0:01:02.9]} 34... Kh7 {[%clk
0:00:35.4]} 35. f3 {[%clk 0:01:03.6]} 35... h5 {[%clk 0:00:33.3]} 36. Rc1 {[%clk
0:01:01.5]} 36... Rd8 {[%clk 0:00:32.9]} 37. Nc2 {[%clk 0:01:01]} 37... Rd3
{[%clk 0:00:31.8]} 38. Qe2 {[%clk 0:01:01.5]} 38... Bxf3 {[%clk 0:00:25.3]} 39.
gxf3 {[%clk 0:00:59.8]} 39... Qg5+ {[%clk 0:00:26.5]} 0-1

[Event "*** Titled Tuesday Blitz"]
[Site "Chess.com"]
[Date "2020.01.07"]
[Round "3"]
[White "tomozupan"]
[Black "coolthing"]
[Result "1-0"]
[WhiteElo "2197"]
[BlackElo "2342"]
[TimeControl "180+2"]
[EndTime "13:38:25 PST"]
[Termination "tomozupan won on time"]

1. d4 {[%clk 0:03:01.9]} 1... Nf6 {[%clk 0:03:01.9]} 2. Bg5 {[%clk 0:03:02]}
2... e6 {[%clk 0:03:00]} 3. e4 {[%clk 0:03:02.5]} 3... Be7 {[%clk 0:03:00.6]} 4.
e5 {[%clk 0:03:03.7]} 4... Nd5 {[%clk 0:03:00]} 5. Bxe7 {[%clk 0:03:04.8]} 5...
Nxe7 {[%clk 0:03:00.1]} 6. Nc3 {[%clk 0:03:04]} 6... d5 {[%clk 0:03:00.4]} 7.
Qg4 {[%clk 0:02:56.1]} 7... Nf5 {[%clk 0:02:53.2]} 8. Bd3 {[%clk 0:02:56.6]}
8... h5 {[%clk 0:02:50.3]} 9. Qf4 {[%clk 0:02:43.6]} 9... g5 {[%clk 0:02:50.6]}
10. Qd2 {[%clk 0:02:43.8]} 10... Nxd4 {[%clk 0:02:49.6]} 11. O-O-O {[%clk
0:02:40]} 11... c5 {[%clk 0:02:50.1]} 12. f4 {[%clk 0:02:32.4]} 12... Nbc6
{[%clk 0:02:34.5]} 13. Nf3 {[%clk 0:02:25.1]} 13... g4 {[%clk 0:02:34.6]} 14.
Nxd4 {[%clk 0:02:19.2]} 14... Nxd4 {[%clk 0:02:09]} 15. Rhf1 {[%clk 0:01:57.1]}
15... Bd7 {[%clk 0:02:04.8]} 16. f5 {[%clk 0:01:57.4]} 16... Qa5 {[%clk
0:01:52.8]} 17. fxe6 {[%clk 0:01:49]} 17... Bxe6 {[%clk 0:01:53.7]} 18. Qg5
{[%clk 0:01:41.6]} 18... Qd8 {[%clk 0:01:43.1]} 19. Rf6 {[%clk 0:01:40.8]} 19...
Qe7 {[%clk 0:01:39.5]} 20. Bb5+ {[%clk 0:01:12.3]} 20... Nxb5 {[%clk 0:01:37]}
21. Nxb5 {[%clk 0:01:08.4]} 21... O-O-O {[%clk 0:01:33]} 22. Nxa7+ {[%clk
0:01:05.2]} 22... Kb8 {[%clk 0:01:33]} 23. Nb5 {[%clk 0:01:06.2]} 23... h4
{[%clk 0:01:06.9]} 24. Qe3 {[%clk 0:01:06]} 24... b6 {[%clk 0:00:53.8]} 25. Rdf1
{[%clk 0:01:04.6]} 25... Rh5 {[%clk 0:00:49.1]} 26. Nd6 {[%clk 0:00:58.7]} 26...
Rg8 {[%clk 0:00:37.9]} 27. a3 {[%clk 0:00:58.2]} 27... Rgg5 {[%clk 0:00:37]} 28.
Nxf7 {[%clk 0:00:56.1]} 28... Bxf7 {[%clk 0:00:37.3]} 29. Rxf7 {[%clk
0:00:57.1]} 29... Qxe5 {[%clk 0:00:38.4]} 30. Qb3 {[%clk 0:00:46.3]} 30... Qe6
{[%clk 0:00:07.8]} 31. Qa4 {[%clk 0:00:37.3]} 31... Qe3+ {[%clk 0:00:05]} 32.
Kb1 {[%clk 0:00:37]} 1-0

[Event "*** Titled Tuesday Blitz"]
[Site "Chess.com"]
[Date "2020.01.07"]
[Round "3"]
[White "chessdjw"]
[Black "KhazarBabazada"]
[Result "0-1"]
[WhiteElo "2659"]
[BlackElo "2921"]
[TimeControl "180+2"]
[EndTime "13:38:38 PST"]
[Termination "KhazarBabazada won by checkmate"]

1. d4 {[%clk 0:03:01.9]} 1... Nf6 {[%clk 0:03:00.1]} 2. Nf3 {[%clk 0:03:02.9]}
2... g6 {[%clk 0:03:01.7]} 3. g3 {[%clk 0:03:04]} 3... Bg7 {[%clk 0:03:02.8]} 4.
Bg2 {[%clk 0:03:05.7]} 4... O-O {[%clk 0:03:03.5]} 5. O-O {[%clk 0:03:07.4]}
5... c6 {[%clk 0:03:04.1]} 6. b3 {[%clk 0:03:07.7]} 6... d5 {[%clk 0:03:05.5]}
7. Bb2 {[%clk 0:03:07.2]} 7... a5 {[%clk 0:03:07.2]} 8. c4 {[%clk 0:03:08.1]}
8... a4 {[%clk 0:03:08]} 9. e3 {[%clk 0:03:09.3]} 9... Bf5 {[%clk 0:03:06.7]}
10. Qe2 {[%clk 0:03:10.1]} 10... h5 {[%clk 0:03:03.6]} 11. Rd1 {[%clk
0:03:08.1]} 11... e6 {[%clk 0:03:04.7]} 12. Nh4 {[%clk 0:02:48.4]} 12... Nbd7
{[%clk 0:03:04.6]} 13. Nxf5 {[%clk 0:02:48.4]} 13... gxf5 {[%clk 0:03:03.3]} 14.
Ba3 {[%clk 0:02:36.7]} 14... Re8 {[%clk 0:03:03.9]} 15. Nc3 {[%clk 0:02:37.7]}
15... h4 {[%clk 0:03:03.2]} 16. gxh4 {[%clk 0:02:30.9]} 16... Ne4 {[%clk
0:03:02.6]} 17. Nxe4 {[%clk 0:02:27.2]} 17... fxe4 {[%clk 0:03:04.5]} 18. Qg4
{[%clk 0:02:21.6]} 18... f5 {[%clk 0:03:05.7]} 19. Qg5 {[%clk 0:02:18.9]} 19...
Kh7 {[%clk 0:02:47.8]} 20. cxd5 {[%clk 0:02:09.2]} 20... Qxg5 {[%clk 0:02:47.9]}
21. hxg5 {[%clk 0:02:09.3]} 21... exd5 {[%clk 0:02:49.8]} 22. h4 {[%clk
0:02:08.5]} 22... Kg6 {[%clk 0:02:50.7]} 23. Bd6 {[%clk 0:01:59.5]} 23... Rh8
{[%clk 0:02:44.7]} 24. Bg3 {[%clk 0:01:59.9]} 24... Ra6 {[%clk 0:02:37.3]} 25.
Bf1 {[%clk 0:01:56.5]} 25... Ra7 {[%clk 0:02:38.4]} 26. Be2 {[%clk 0:01:55.3]}
26... Nc5 {[%clk 0:02:20.4]} 27. b4 {[%clk 0:01:43.3]} 27... Ne6 {[%clk
0:02:19.2]} 28. Kg2 {[%clk 0:01:22.6]} 28... Raa8 {[%clk 0:02:20]} 29. Rac1
{[%clk 0:01:19.1]} 29... Raf8 {[%clk 0:02:20.4]} 30. b5 {[%clk 0:01:17.7]} 30...
f4 {[%clk 0:02:11.6]} 31. exf4 {[%clk 0:01:10.1]} 31... Nxf4+ {[%clk 0:02:13.5]}
32. Kf1 {[%clk 0:01:01.7]} 32... cxb5 {[%clk 0:02:06.3]} 33. Bxb5 {[%clk
0:01:01.2]} 33... Nh5 {[%clk 0:02:02]} 34. Ke2 {[%clk 0:00:41.1]} 34... Rf3
{[%clk 0:02:01.9]} 35. Bd6 {[%clk 0:00:14.9]} 35... Rd8 {[%clk 0:01:56.9]} 36.
Bc7 {[%clk 0:00:14.3]} 36... Rdf8 {[%clk 0:01:56.2]} 37. Rf1 {[%clk 0:00:13]}
37... Bxd4 {[%clk 0:01:56.9]} 38. Bxa4 {[%clk 0:00:11.5]} 38... Rxf2+ {[%clk
0:01:57.2]} 39. Rxf2 {[%clk 0:00:12.9]} 39... Rxf2+ {[%clk 0:01:56.9]} 40. Ke1
{[%clk 0:00:14.5]} 40... Nf4 {[%clk 0:01:55.1]} 41. Be8+ {[%clk 0:00:14.9]}
41... Kg7 {[%clk 0:01:55.6]} 42. Bxf4 {[%clk 0:00:13.5]} 42... Rxf4 {[%clk
0:01:57.5]} 43. Rc7+ {[%clk 0:00:14]} 43... Kf8 {[%clk 0:01:57]} 44. Bg6 {[%clk
0:00:05.3]} 44... Bf2+ {[%clk 0:01:58.9]} 45. Kd1 {[%clk 0:00:05.2]} 45... Bxh4
{[%clk 0:01:59.7]} 46. Rxb7 {[%clk 0:00:05.6]} 46... Bxg5 {[%clk 0:01:59.5]} 47.
a4 {[%clk 0:00:07]} 47... d4 {[%clk 0:01:59.9]} 48. a5 {[%clk 0:00:06.2]} 48...
d3 {[%clk 0:01:59.8]} 49. Ke1 {[%clk 0:00:02.8]} 49... Rf6 {[%clk 0:01:54.5]}
50. Bxe4 {[%clk 0:00:03.1]} 50... d2+ {[%clk 0:01:53.9]} 51. Kd1 {[%clk
0:00:04]} 51... Rf1+ {[%clk 0:01:54.7]} 52. Ke2 {[%clk 0:00:04.6]} 52... d1=Q#
{[%clk 0:01:56.6]} 0-1

[Event "*** Titled Tuesday Blitz"]
[Site "Chess.com"]
[Date "2020.01.07"]
[Round "3"]
[White "kasparicy"]
[Black "francyIM"]
[Result "0-1"]
[WhiteElo "2300"]
[BlackElo "2603"]
[TimeControl "180+2"]
[EndTime "13:38:42 PST"]
[Termination "francyIM won by resignation"]

1. e4 {[%clk 0:03:01.9]} 1... c6 {[%clk 0:02:23.3]} 2. d4 {[%clk 0:02:58.5]}
2... d5 {[%clk 0:02:23]} 3. f3 {[%clk 0:03:00.4]} 3... g6 {[%clk 0:02:20.2]} 4.
Be3 {[%clk 0:02:38.3]} 4... Bg7 {[%clk 0:02:08.7]} 5. Nc3 {[%clk 0:02:28.9]}
5... Nf6 {[%clk 0:01:49.6]} 6. Qd2 {[%clk 0:02:26.3]} 6... h5 {[%clk 0:01:39.8]}
7. O-O-O {[%clk 0:02:25.7]} 7... Be6 {[%clk 0:01:35.8]} 8. Kb1 {[%clk
0:02:25.8]} 8... Nbd7 {[%clk 0:01:35.7]} 9. h4 {[%clk 0:02:24.1]} 9... a5 {[%clk
0:01:35.9]} 10. Nge2 {[%clk 0:02:25.3]} 10... a4 {[%clk 0:01:35.3]} 11. Nf4
{[%clk 0:02:25.9]} 11... Nf8 {[%clk 0:01:36]} 12. exd5 {[%clk 0:02:14.2]} 12...
Nxd5 {[%clk 0:01:35.1]} 13. Ncxd5 {[%clk 0:02:13.6]} 13... Bxd5 {[%clk
0:01:36.2]} 14. c4 {[%clk 0:02:08]} 14... Be6 {[%clk 0:01:34.9]} 15. d5 {[%clk
0:02:09.3]} 15... Bf5+ {[%clk 0:01:32.4]} 16. Bd3 {[%clk 0:02:05.8]} 16... Bxd3+
{[%clk 0:01:27.3]} 17. Qxd3 {[%clk 0:02:07.7]} 17... cxd5 {[%clk 0:01:27.2]} 18.
Nxd5 {[%clk 0:02:04.1]} 18... Nd7 {[%clk 0:01:18.9]} 19. Rhe1 {[%clk 0:02:01.1]}
19... e6 {[%clk 0:01:15.3]} 20. Bg5 {[%clk 0:01:44.1]} 20... Qc8 {[%clk
0:01:14.9]} 21. Rxe6+ {[%clk 0:01:35.4]} 21... Kf8 {[%clk 0:01:10.1]} 22. Be7+
{[%clk 0:00:56.5]} 22... Kg8 {[%clk 0:00:48.9]} 23. Bd6 {[%clk 0:00:54.1]} 23...
Kh7 {[%clk 0:00:37.8]} 24. Ne7 {[%clk 0:00:50.3]} 24... Nc5 {[%clk 0:00:28.5]}
25. Bxc5 {[%clk 0:00:21.4]} 25... Qxe6 {[%clk 0:00:28.3]} 26. Nd5 {[%clk
0:00:19.8]} 26... a3 {[%clk 0:00:26.5]} 27. Bd4 {[%clk 0:00:20.5]} 27... axb2
{[%clk 0:00:25.4]} 28. Bxg7 {[%clk 0:00:20.8]} 28... Kxg7 {[%clk 0:00:27]} 29.
Qc3+ {[%clk 0:00:20.8]} 29... f6 {[%clk 0:00:24.3]} 30. Re1 {[%clk 0:00:22.1]}
30... Qf5+ {[%clk 0:00:25]} 31. Kxb2 {[%clk 0:00:23.7]} 31... Rhe8 {[%clk
0:00:25.7]} 32. Rxe8 {[%clk 0:00:22.3]} 32... Rxe8 {[%clk 0:00:25.8]} 33. g4
{[%clk 0:00:18.5]} 33... Re2+ {[%clk 0:00:25.6]} 34. Kb3 {[%clk 0:00:18.4]}
34... Qb1+ {[%clk 0:00:24.7]} 0-1

[Event "*** Titled Tuesday Blitz"]
[Site "Chess.com"]
[Date "2020.01.07"]
[Round "3"]
[White "Zubrrr"]
[Black "kingofthenil"]
[Result "0-1"]
[WhiteElo "2735"]
[BlackElo "2491"]
[TimeControl "180+2"]
[EndTime "13:38:45 PST"]
[Termination "kingofthenil won on time"]

1. c4 {[%clk 0:02:56.7]} 1... e6 {[%clk 0:03:00.3]} 2. g3 {[%clk 0:02:57.5]}
2... Nf6 {[%clk 0:03:01.4]} 3. Bg2 {[%clk 0:02:58.5]} 3... d5 {[%clk 0:03:02]}
4. Nf3 {[%clk 0:02:58.3]} 4... Be7 {[%clk 0:03:03.5]} 5. O-O {[%clk 0:02:58.1]}
5... O-O {[%clk 0:03:04.4]} 6. d4 {[%clk 0:02:56.8]} 6... c6 {[%clk 0:03:03.7]}
7. Qc2 {[%clk 0:02:57]} 7... b6 {[%clk 0:03:04]} 8. Nbd2 {[%clk 0:02:56.4]} 8...
c5 {[%clk 0:03:05.3]} 9. e4 {[%clk 0:02:28.8]} 9... Nc6 {[%clk 0:03:02.8]} 10.
dxc5 {[%clk 0:02:22.5]} 10... bxc5 {[%clk 0:03:01.9]} 11. cxd5 {[%clk
0:02:19.9]} 11... exd5 {[%clk 0:03:01.9]} 12. exd5 {[%clk 0:02:15.8]} 12... Nxd5
{[%clk 0:03:02]} 13. a3 {[%clk 0:02:11]} 13... Rb8 {[%clk 0:02:56.1]} 14. Re1
{[%clk 0:01:31.4]} 14... Qb6 {[%clk 0:02:16.8]} 15. Nc4 {[%clk 0:01:22]} 15...
Qb5 {[%clk 0:01:34]} 16. Bg5 {[%clk 0:01:00.1]} 16... Be6 {[%clk 0:01:28.8]} 17.
Bxe7 {[%clk 0:00:58.9]} 17... Ndxe7 {[%clk 0:01:27.4]} 18. Ng5 {[%clk
0:00:45.3]} 18... Bf5 {[%clk 0:01:27.6]} 19. Qc3 {[%clk 0:00:40.5]} 19... h6
{[%clk 0:01:14.2]} 20. Ne4 {[%clk 0:00:15.9]} 20... Nd5 {[%clk 0:00:25.6]} 21.
Qc1 {[%clk 0:00:15.2]} 21... Bxe4 {[%clk 0:00:25]} 22. Bxe4 {[%clk 0:00:15.1]}
22... Rfd8 {[%clk 0:00:26.1]} 23. Ne3 {[%clk 0:00:06.1]} 23... Nf6 {[%clk
0:00:22]} 24. Bxc6 {[%clk 0:00:05.5]} 24... Qxc6 {[%clk 0:00:22.8]} 25. Nf5
{[%clk 0:00:06.3]} 25... Qf3 {[%clk 0:00:19]} 26. Qxc5 {[%clk 0:00:06.2]} 26...
Rxb2 {[%clk 0:00:15.2]} 27. Nh4 {[%clk 0:00:03.6]} 27... Qd3 {[%clk 0:00:14.2]}
28. Rac1 {[%clk 0:00:03.3]} 28... Ne4 {[%clk 0:00:13.5]} 29. Qe7 {[%clk
0:00:03.6]} 29... Nxf2 {[%clk 0:00:12.6]} 0-1